bitfinex-derivatives/quotes_ETHF0:USTF0_20260226
["timestamp","ask_amount","ask_price","bid_price","bid_amount"]
[1772069203244,0.25375364,2058.8,2058.7,0.00457239]
[1772069203445,0.25375364,2058.8,2058.4,7.55590553]
[1772069203746,5.99282478,2058.6,2058.4,7.55590553]
[1772069203942,0.25375364,2058.8,2058.4,7.55590553]
[1772069204140,0.25375364,2058.8,2058.4,6.361]
[1772069204647,7.14857842,2058.5,2058.4,6.36619298]
[1772069204944,1.15575364,2059.4,2058.4,6.36619298]
[1772069205138,1.15575364,2058.6,2058.4,6.36619298]
[1772069205540,5.99282478,2058.5,2058.4,6.36619298]
[1772069207249,1.15575364,2059.4,2058.5,1.19490553]
[1772069207750,1.15575364,2059.1,2058.5,1.19490553]
[1772069208157,4.69084576,2059.0,2058.6,1.19490553]
[1772069208448,1.15575364,2059.4,2058.8,0.2721909]
[1772069208648,1.09577486,2059.0,2058.8,0.2721909]
[1772069208947,1.15575364,2059.3,2058.7,6.36]
[1772069209144,1.09577486,2059.0,2058.7,6.36]
[1772069209349,1.15575364,2059.1,2058.7,6.79757445]
[1772069209654,2.2515285,2059.1,2058.7,6.79757445]
[1772069209847,1.15575364,2059.1,2058.7,6.79757445]
[1772069210146,1.15575364,2059.1,2058.7,6.36]
[1772069210348,1.09577486,2058.8,2058.7,6.36]
[1772069210548,1.15575364,2059.4,2058.7,6.36]
[1772069210749,1.05224556,2058.9,2058.7,6.36]
[1772069210950,1.15575364,2059.1,2058.7,6.36]
[1772069211649,0.00499832,2059.5,2058.7,6.36]
[1772069211846,1.15575364,2059.4,2058.7,6.36]
[1772069212047,1.15575364,2059.4,2058.8,0.42405271]
[1772069212350,1.15575364,2059.3,2058.8,0.42405271]
[1772069212553,1.15575364,2059.3,2058.7,6.36]
[1772069212855,1.05224556,2058.8,2058.7,6.36]
[1772069213154,1.15575364,2058.9,2058.7,6.36]
[1772069213852,1.05224556,2058.8,2058.7,6.36]
[1772069215948,1.26375927,2058.7,2058.5,7.173]
[1772069216147,1.05224556,2058.6,2058.5,4.20425023]
[1772069216349,1.05224556,2058.6,2058.5,4.11836648]
[1772069216553,0.79538525,2058.6,2058.5,4.11836648]
[1772069216746,0.00499832,2059.5,2058.5,4.11836648]
[1772069216747,1.44893849,2059.5,2058.5,9.59402427]
[1772069217150,1.44893849,2059.5,2058.5,4.11836648]
[1772069219856,1.44893849,2059.5,2058.4,0.00519298]
[1772069220561,1.43229499,2059.1,2057.7,0.0814419]
[1772069221353,1.43229499,2059.1,2057.9,0.0814419]
[1772069221558,1.43229499,2059.1,2057.9,0.08601332]
[1772069223050,1.43229499,2059.1,2057.9,0.00457142]
[1772069224758,1.43229499,2059.1,2057.9,0.03734847]
[1772069225860,1.43229499,2059.1,2058.1,0.029036]
[1772069232268,1.43229499,2059.1,2057.9,0.00457142]
[1772069232969,6.60377,2059.3,2057.9,0.00457142]
[1772069232970,1.46017567,2058.9,2057.9,0.00457142]
[1772069233371,1.46017567,2058.7,2057.9,0.00457142]
[1772069236780,1.46017567,2058.7,2057.0,7.76342673]
[1772069236981,4.30142652,2059.0,2057.0,7.76342673]
[1772069236982,1.45930862,2058.5,2057.0,7.76342673]
[1772069237182,1.45930862,2058.5,2057.2,5.5735594]
[1772069237474,1.45930862,2058.5,2057.0,0.24303]
[1772069237680,1.45930862,2058.5,2057.0,0.24702843]
[1772069238378,1.45930862,2058.5,2057.1,5.61146826]
[1772069240383,1.48148814,2058.3,2057.0,0.24702843]
[1772069240683,1.48155832,2058.1,2057.0,0.00399843]
[1772069240883,1.48155832,2057.9,2057.0,0.00399843]
[1772069241180,1.48541701,2057.9,2057.0,0.00399843]
[1772069242477,1.47777534,2057.7,2056.3,6.361]
[1772069242678,1.47777534,2057.7,2056.1,6.361]
[1772069242874,1.47777534,2057.7,2056.1,11.74717156]
[1772069243080,7.83877534,2057.7,2056.2,0.24313]
[1772069243280,0.00385869,2057.9,2056.5,0.24309]
[1772069243281,1.47777534,2057.6,2056.5,0.24309]
[1772069243584,1.47777534,2057.6,2056.5,0.24806697]
[1772069243784,1.47777534,2057.6,2056.6,5.08171939]
[1772069243977,1.47777534,2057.6,2056.7,6.361]
[1772069244481,1.47504365,2057.8,2056.8,5.58165771]
[1772069246781,0.00385869,2057.9,2056.9,0.24305]
[1772069247283,1.48611787,2057.9,2057.0,5.45969976]
[1772069247880,1.48611787,2057.9,2056.9,0.24305]
[1772069251788,1.48611787,2057.9,2057.0,5.5297083]
[1772069253788,1.48611787,2057.9,2056.9,0.24305]
[1772069254290,1.48611787,2057.9,2056.7,6.361]
[1772069254991,1.48611787,2057.9,2056.8,5.55584256]
[1772069260189,1.48611787,2057.9,2056.5,0.00497697]
[1772069260494,1.48611787,2057.9,2056.6,6.361]
[1772069263893,1.48611787,2057.9,2056.7,0.24307]
[1772069264896,1.48611787,2057.9,2056.6,6.361]
[1772069265101,1.46848288,2057.7,2056.6,6.361]
[1772069267901,1.47527815,2057.9,2056.7,7.37262426]
[1772069270301,1.47527815,2057.9,2056.7,17.40486498]
[1772069270803,1.47527815,2057.9,2056.9,0.24305]
[1772069271100,1.47527815,2057.9,2057.0,11.68993967]
[1772069274605,0.00385869,2057.9,2057.1,0.24302]
[1772069275204,0.00385869,2057.9,2057.2,5.55183441]
[1772069277004,1.47942748,2057.9,2057.2,5.55183441]
[1772069277200,1.47942748,2057.9,2057.2,7.53485379]
[1772069277601,1.47942748,2057.9,2057.3,7.61485492]
[1772069277803,1.47942748,2057.9,2057.4,6.362]
[1772069278302,1.29905678,2058.5,2057.5,1.25300278]
[1772069279405,1.30528348,2058.5,2057.5,1.25300278]
[1772069282006,1.30528348,2058.5,2057.6,1.29344843]
[1772069283706,1.30528348,2058.5,2057.5,1.29344843]
[1772069283902,1.29905678,2058.3,2057.4,6.362]
[1772069284101,1.29905678,2058.2,2057.1,6.362]
[1772069284410,1.29905678,2058.0,2057.1,6.362]
[1772069285211,1.29905678,2058.0,2057.2,1.29344843]
[1772069285904,1.29905678,2058.0,2057.0,1.29344843]
[1772069286101,1.29905678,2058.0,2056.9,1.29344843]
[1772069295514,1.29905678,2058.0,2056.7,7.61485492]
[1772069295715,1.29905678,2057.5,2056.6,1.27085049]
[1772069295916,1.29905678,2057.3,2056.5,0.00497697]
[1772069296519,1.29905678,2057.3,2056.5,1.26363035]
[1772069297518,1.29905678,2057.3,2056.5,7.62563035]
[1772069300318,1.29905678,2057.3,2056.6,1.26685728]
[1772069301321,1.29905678,2057.6,2056.6,1.26685728]
[1772069301619,1.29905678,2057.9,2056.8,1.26115636]
[1772069301819,1.29905678,2057.9,2057.0,1.26115636]
[1772069305224,1.29905678,2057.9,2057.0,3.24417574]
[1772069305526,1.29905678,2057.9,2057.1,1.24485167]
[1772069319335,1.29905678,2057.9,2057.2,1.21037878]
[1772069324038,1.29905678,2057.9,2057.6,1.19736427]
[1772069324236,1.29905678,2057.9,2057.5,2.57512737]
[1772069324433,1.29905678,2057.9,2057.2,1.20545107]
[1772069326540,1.29905678,2057.9,2057.4,1.20694053]
[1772069326741,1.29905678,2057.9,2057.3,2.58470363]
[1772069327745,1.29905678,2057.9,2057.4,1.20399049]
[1772069329150,1.29905678,2057.9,2057.3,1.3777631]
[1772069329838,1.29905678,2057.9,2057.3,2.57506807]
[1772069333350,1.29905678,2057.9,2057.4,1.30708948]
[1772069339153,1.29905678,2057.9,2057.3,2.65080121]
[1772069339358,1.29905678,2057.9,2057.3,1.27303811]
[1772069340348,1.29905678,2057.9,2057.2,1.27303811]
[1772069343752,1.29905678,2057.9,2056.8,1.37760248]
[1772069343753,1.29510616,2057.7,2056.8,8.88789303]
[1772069343950,1.29510616,2057.5,2056.8,8.88789303]
[1772069344150,1.29510616,2057.5,2056.9,1.27303811]
[1772069344958,1.29510616,2057.7,2057.1,1.27303811]
[1772069351164,1.29510616,2057.7,2056.9,1.26804905]
[1772069356172,1.29510616,2057.5,2056.7,8.88340333]
[1772069356368,1.29510616,2057.5,2056.7,1.26854841]
[1772069356664,1.29510616,2057.3,2056.5,0.00497697]
[1772069356868,1.29510616,2057.1,2056.5,0.00497697]
[1772069358070,1.29510616,2057.1,2056.5,1.26689185]
[1772069360976,1.29510616,2057.0,2056.5,0.00497697]
[1772069361172,1.29510616,2057.0,2056.1,1.27303811]
[1772069361375,1.29510616,2056.8,2055.9,1.27303811]
[1772069361876,1.29510616,2056.6,2055.6,7.61485492]
[1772069362073,1.29510616,2056.3,2055.8,1.27303811]
[1772069362268,1.29510616,2056.3,2055.6,1.27718749]
[1772069367483,1.29510616,2056.3,2055.6,0.00414938]
[1772069367675,1.28542997,2055.7,2055.1,1.25084766]
[1772069367874,1.28542997,2055.4,2054.7,1.25084766]
[1772069368081,7.74060248,2056.0,2054.9,1.25084766]
[1772069368082,1.28542997,2055.9,2054.9,1.25084766]
[1772069368280,1.28542997,2055.8,2055.0,1.25084766]
[1772069368681,1.28542997,2055.8,2055.0,1.25687145]
[1772069369485,1.28542997,2055.5,2055.0,1.25687145]
[1772069369679,1.28542997,2055.5,2055.0,0.00602379]
[1772069370184,1.28542997,2055.5,2055.0,1.25347272]
[1772069370477,1.28542997,2055.3,2054.6,1.30913975]
[1772069370880,1.28542997,2055.0,2054.2,2.52223139]
[1772069371084,1.28542997,2055.0,2054.3,1.30913975]
[1772069371379,1.28542997,2055.0,2054.3,1.31491119]
[1772069371588,1.28997443,2055.0,2054.3,1.31491119]
[1772069372678,0.00454446,2055.0,2054.3,2.69251367]
[1772069372989,1.31766732,2055.0,2054.4,1.31507268]
[1772069373887,1.31312286,2055.3,2054.6,1.31507268]
[1772069374280,6.364,2055.7,2054.6,1.31507268]
[1772069374887,1.31312286,2055.6,2054.6,1.31507268]
[1772069377192,1.3189689,2055.7,2054.6,1.31507268]
[1772069377394,0.00584604,2055.7,2054.8,1.31507268]
[1772069377892,1.31312286,2056.1,2055.0,1.31507268]
[1772069378097,1.31312286,2056.1,2055.2,1.31507268]
[1772069378893,0.00357683,2056.1,2055.2,1.31507268]
[1772069379394,0.00357683,2056.1,2055.2,3.30430881]
[1772069379598,1.31312286,2056.5,2055.4,1.31507268]
[1772069380699,1.3169086,2056.5,2055.5,1.31507268]
[1772069381100,1.31312286,2056.4,2055.5,1.31507268]
[1772069382699,1.31312286,2056.2,2055.5,1.31507268]
[1772069383096,1.31312286,2056.2,2055.2,1.31507268]
[1772069383500,1.31312286,2056.1,2055.2,1.31507268]
[1772069383797,1.31312286,2056.3,2055.2,1.31507268]
[1772069385706,1.31312286,2056.2,2055.2,1.31507268]
[1772069386402,1.31312286,2056.1,2055.2,1.31507268]
[1772069387099,1.31312286,2056.0,2055.2,1.31507268]
[1772069388303,1.31312286,2055.8,2055.2,1.31507268]
[1772069389001,1.31312286,2056.4,2055.2,1.31507268]
[1772069389202,1.31312286,2056.2,2055.2,1.31507268]
[1772069389797,2.62624572,2056.2,2055.2,1.31507268]
[1772069390106,0.00378574,2056.5,2055.2,1.31507268]
[1772069390107,1.31312286,2056.1,2055.2,1.31507268]
[1772069392311,2.62624572,2056.1,2055.2,1.31507268]
[1772069392503,1.31312286,2056.1,2055.2,1.31507268]
[1772069392800,2.62624572,2056.1,2055.2,1.31507268]
[1772069394311,1.31312286,2056.0,2055.2,1.31507268]
[1772069394707,1.31312286,2055.9,2055.2,1.31507268]
[1772069395307,1.31312286,2056.4,2055.2,1.31507268]
[1772069395507,1.31312286,2056.1,2055.2,1.31507268]
[1772069396402,1.30639755,2056.4,2055.2,1.31507268]
[1772069396603,1.30639755,2056.2,2055.2,1.31507268]
[1772069397002,2.61952041,2056.2,2055.2,1.31507268]
[1772069397413,1.30639755,2056.2,2055.2,1.31507268]
[1772069398014,1.31312286,2056.1,2055.2,1.31507268]
[1772069398811,1.30639755,2056.0,2055.2,1.31507268]
[1772069399509,2.61952041,2056.0,2055.2,1.31507268]
[1772069399714,1.30639755,2056.0,2055.2,1.31507268]
[1772069400015,0.00378574,2056.5,2055.2,1.31507268]
[1772069400016,2.61952041,2055.9,2055.2,1.31507268]
[1772069400214,1.30639755,2055.9,2055.2,1.31507268]
[1772069400515,1.30639755,2055.5,2055.2,1.31507268]
[1772069400814,1.30639755,2055.7,2055.2,1.31507268]
[1772069401510,1.30639755,2055.6,2054.9,1.24144133]
[1772069401713,1.98707121,2055.7,2054.5,1.24144133]
[1772069401714,1.30639755,2055.2,2054.5,1.24144133]
[1772069402215,1.31312286,2055.0,2054.5,1.24144133]
[1772069402512,1.30639755,2055.5,2054.5,1.24144133]
[1772069403213,1.30639755,2055.1,2054.3,1.24721277]
[1772069403612,1.31312286,2055.0,2054.3,1.24721277]
[1772069404418,1.3101593,2055.1,2054.3,1.24721277]
[1772069404815,1.31312286,2055.0,2054.4,1.24144133]
[1772069405315,1.3101593,2055.1,2054.6,1.24144133]
[1772069405721,1.3101593,2055.1,2054.4,1.24144133]
[1772069406018,1.30639755,2054.8,2053.8,1.24144133]
[1772069406922,1.30639755,2054.8,2053.8,1.24551127]
[1772069410521,1.30639755,2054.8,2053.8,0.00406994]
[1772069411624,1.30639755,2054.8,2053.8,1.24551127]
[1772069412925,1.30639755,2054.8,2053.8,0.00406994]
[1772069414123,1.30639755,2054.8,2053.9,1.24144133]
[1772069414524,1.30639755,2054.8,2053.8,0.00406994]
[1772069415426,1.30639755,2054.8,2053.8,1.24551127]
[1772069416230,1.30639755,2054.8,2053.8,0.00406994]
[1772069418034,1.30639755,2054.8,2053.8,1.24551127]
[1772069419434,1.30639755,2054.8,2053.8,0.00406994]
[1772069419631,1.30639755,2054.8,2053.8,1.24551127]
[1772069421129,1.30639755,2054.8,2053.9,1.24144133]
[1772069425136,1.30639755,2054.8,2053.8,0.00406994]
[1772069425345,1.30639755,2054.8,2053.8,1.24551127]
[1772069426643,1.30639755,2054.8,2053.8,3.23258248]
[1772069426844,1.30639755,2054.8,2053.9,1.24129144]
[1772069429146,1.3289467,2054.4,2053.3,1.24129144]
[1772069430151,1.3289467,2054.4,2053.3,1.24718676]
[1772069434756,1.3289467,2054.4,2053.5,1.31809851]
[1772069438761,1.3289467,2054.4,2053.3,1.32399383]
[1772069438956,1.27555564,2053.7,2052.7,7.61485492]
[1772069439161,1.27555564,2053.7,2052.4,1.31809851]
[1772069439363,1.27555564,2053.5,2052.4,1.31809851]
[1772069440166,1.27555564,2053.2,2052.4,0.00609987]
[1772069441564,1.27555564,2053.2,2052.1,1.31809851]
[1772069442166,1.27555564,2052.9,2051.9,1.31809851]
[1772069442366,1.27555564,2052.9,2052.1,1.31809851]
[1772069442567,1.27555564,2052.9,2052.1,1.32256002]
[1772069444765,1.27555564,2052.9,2052.1,0.00446151]
[1772069444961,1.27555564,2052.7,2051.5,1.31809851]
[1772069446068,1.27555564,2052.7,2051.5,1.3242878]
[1772069446863,1.27555564,2052.7,2051.7,1.31809851]
[1772069447069,1.27555564,2052.9,2051.8,1.31809851]
[1772069447268,1.27555564,2052.9,2051.9,1.31809851]
[1772069447762,1.27555564,2052.9,2052.1,1.31809851]
[1772069449468,1.27555564,2053.2,2052.1,1.31809851]
[1772069450676,1.27555564,2053.2,2052.3,1.31809851]
[1772069450868,1.27555564,2053.4,2052.3,1.31809851]
[1772069451875,0.00521015,2053.5,2052.7,1.56163851]
[1772069452077,1.5e-07,2053.5,2052.9,1.31809851]
[1772069452373,1.27555564,2054.0,2053.1,1.31809851]
[1772069453174,1.28180218,2054.0,2053.1,1.32366955]
[1772069455466,0.00624654,2054.0,2053.3,1.31809851]
[1772069455673,1.27555564,2054.2,2053.5,1.31809851]
[1772069456572,0.00358675,2054.2,2053.5,1.31809851]
[1772069456773,1.25766469,2054.4,2053.5,1.31809851]
[1772069456965,1.25766469,2054.9,2053.5,1.31809851]
[1772069457879,1.26191998,2054.9,2053.5,1.31809851]
[1772069459380,1.26191998,2054.9,2053.7,1.24076997]
[1772069459769,1.26191998,2054.9,2053.4,7.60776997]
[1772069459975,1.25766469,2054.7,2053.5,1.24076997]
[1772069460972,1.25766469,2054.7,2053.7,1.24076997]
[1772069461178,1.25766469,2054.7,2053.8,1.24076997]
[1772069461378,1.25766469,2054.7,2054.0,1.24076997]
[1772069462981,1.25766469,2054.7,2053.9,6.367]
[1772069463582,1.25766469,2054.7,2054.0,1.24076997]
[1772069466083,1.26191998,2054.9,2054.0,1.48415997]
[1772069467086,1.26191998,2054.9,2053.9,6.367]
[1772069467285,1.26191998,2054.9,2053.9,7.60776997]
[1772069467788,1.26191998,2054.9,2054.0,1.24076997]
[1772069469382,1.26191998,2054.9,2053.9,6.367]
[1772069469582,1.26191998,2054.9,2053.8,1.24076997]
[1772069469790,1.25766469,2054.7,2053.6,6.368]
[1772069469982,1.25766469,2054.3,2053.1,1.24634101]
[1772069470186,1.25766469,2054.1,2053.1,0.00557104]
[1772069470887,1.25766469,2054.1,2053.1,1.24634101]
[1772069471294,1.25766469,2054.1,2053.3,1.24076997]
[1772069471693,1.25766469,2054.3,2053.3,1.48422997]
[1772069476392,1.25766469,2054.3,2053.3,1.24076997]
[1772069476600,1.25766469,2054.3,2053.2,7.60876997]
[1772069476792,1.25766469,2054.3,2053.3,1.24076997]
[1772069477510,1.25766469,2054.3,2053.2,7.60876997]
[1772069478000,1.25766469,2054.3,2053.3,1.24076997]
[1772069479807,1.25766469,2054.3,2053.2,7.60876997]
[1772069480512,1.25766469,2054.3,2053.3,2.23304]
[1772069480707,1.25766469,2054.3,2053.3,0.24347]
[1772069481107,1.25766469,2054.8,2053.3,0.24347]
[1772069481508,1.25766469,2054.8,2053.5,0.24345]
[1772069482309,1.25766469,2054.8,2053.6,1.24076997]
[1772069483111,1.25766469,2054.8,2053.8,1.24076997]
[1772069483314,1.25766469,2054.8,2054.0,1.24076997]
[1772069485114,1.25766469,2055.2,2054.2,1.24076997]
[1772069486013,1.26263056,2055.2,2054.2,1.24076997]
[1772069493918,1.26263056,2055.2,2053.2,4.863]
[1772069494224,1.26263056,2055.2,2053.8,1.34482177]
[1772069495224,1.25362856,2055.0,2053.8,1.34482177]
[1772069497724,1.25362856,2055.0,2053.8,1.58823177]
[1772069498525,1.25362856,2055.0,2054.0,1.34482177]
[1772069498725,1.25362856,2055.0,2053.9,6.369]
[1772069499224,1.25362856,2055.0,2053.9,7.71382177]
[1772069500218,1.25362856,2055.0,2054.0,1.34482177]
[1772069503623,1.49692856,2054.8,2053.6,1.34482177]
[1772069504822,1.25362856,2054.8,2053.6,1.58826177]
[1772069506325,1.25362856,2054.8,2053.6,1.34482177]
[1772069506630,1.25362856,2054.6,2053.6,1.34482177]
[1772069507130,1.25362856,2054.6,2053.5,6.369]
[1772069507327,1.25362856,2054.4,2053.4,1.34482177]
[1772069508134,1.25362856,2054.2,2053.2,1.34482177]
[1772069516627,1.26955366,2054.0,2053.1,0.00557104]
[1772069517132,1.26955366,2054.0,2053.1,1.32493794]
[1772069523239,1.26955366,2054.0,2052.5,10.14]
[1772069523240,1.26955366,2053.8,2052.6,1.3193669]
[1772069524332,1.26955366,2053.8,2052.6,1.32352731]
[1772069524731,3.2605201,2053.6,2052.6,1.32352731]
[1772069524937,1.26955366,2053.5,2052.6,1.32352731]
[1772069526641,1.26955366,2053.5,2052.7,1.3193669]
[1772069527843,0.00594649,2053.6,2052.7,1.3193669]
[1772069528742,1.26955366,2054.4,2053.0,1.3193669]
[1772069528941,1.26955366,2054.4,2053.3,1.3193669]
[1772069530037,1.2750474,2054.4,2053.3,1.3193669]
[1772069530841,0.00549374,2054.4,2053.3,1.3193669]
[1772069531045,1.2750474,2054.4,2053.3,1.3193669]
[1772069532746,0.00549374,2054.4,2053.3,1.3193669]
[1772069533245,1.2750474,2054.4,2053.3,1.3193669]
[1772069537746,1.2750474,2054.4,2053.5,1.3193669]
[1772069538246,0.00549374,2054.4,2053.5,1.3193669]
[1772069538453,1.26955366,2054.8,2053.8,1.3193669]
[1772069538653,1.26955366,2054.8,2054.0,1.3193669]
[1772069539356,1.27513277,2054.8,2054.0,1.3193669]
[1772069541356,1.27513277,2054.8,2053.6,1.3193669]
[1772069541357,1.26955366,2054.7,2053.6,1.3193669]
[1772069543456,1.26955366,2054.4,2053.4,1.3193669]
[1772069543661,1.26955366,2054.1,2053.3,6.37]
[1772069543958,1.26955366,2054.1,2053.5,3.4271]
[1772069544355,1.26955366,2054.1,2053.5,4.7464669]
[1772069544561,1.26955366,2054.1,2053.5,3.4271]
[1772069544758,1.26955366,2054.1,2053.5,4.7464669]
[1772069545065,1.26955366,2054.1,2053.5,3.4271]
[1772069545560,1.26955366,2054.1,2053.5,4.7464669]
[1772069547459,1.26955366,2054.1,2053.6,1.30801179]
[1772069547660,1.26955366,2054.1,2053.5,3.4271]
[1772069548963,0.73097689,2053.9,2053.1,1.30801179]
[1772069551059,0.73097689,2053.9,2052.8,1.30801179]
[1772069553060,0.73097689,2053.9,2053.0,1.33561172]
[1772069554063,0.72057237,2053.7,2053.0,1.33561172]
[1772069559958,0.72960359,2053.6,2053.0,1.33561172]
[1772069560163,0.72960359,2053.3,2052.9,1.13833279]
[1772069560363,0.72960359,2053.3,2052.9,1.08277965]
[1772069560564,0.73467401,2053.3,2052.4,1.33561172]
[1772069561664,0.73467401,2053.3,2052.4,1.33981021]
[1772069566669,0.14958809,2053.1,2052.4,1.33981021]
[1772069569371,0.00507042,2053.3,2052.4,1.33981021]
[1772069569969,0.2459038,2053.3,2052.4,1.33981021]
[1772069573676,0.00507042,2053.3,2052.4,1.33981021]
[1772069578176,0.32745172,2053.3,2052.4,1.33981021]
[1772069580677,0.32745172,2053.3,2052.2,1.3496096]
[1772069580678,1.99096644,2052.9,2052.2,1.3496096]
[1772069580885,0.3438806,2052.7,2052.0,1.3496096]
[1772069581284,0.3438806,2052.5,2051.4,1.3496096]
[1772069581579,0.3438806,2052.3,2051.4,1.3496096]
[1772069581785,0.34785657,2052.2,2051.4,1.35353659]
[1772069583384,0.34966566,2052.1,2051.3,1.3496096]
[1772069583581,0.34966566,2052.1,2050.4,31.83096399]
[1772069583582,0.36100776,2051.4,2050.4,7.62231239]
[1772069583782,1.9954896,2051.1,2050.1,1.2798395]
[1772069584082,0.11297178,2050.9,2050.2,1.3496096]
[1772069584287,0.11297178,2051.1,2050.2,1.3496096]
[1772069584481,0.11297178,2051.0,2050.3,7.00124475]
[1772069584677,0.00477591,2051.1,2050.4,1.3496096]
[1772069584886,0.48597691,2051.5,2050.6,1.3496096]
[1772069585383,0.48597691,2051.4,2050.7,7.00124475]
[1772069585882,0.49217195,2051.4,2050.7,8.35085435]
[1772069587186,0.50209897,2051.2,2050.7,8.35085435]
[1772069587386,0.50209897,2051.2,2050.8,1.3496096]
[1772069587586,0.48325528,2051.4,2050.8,1.3496096]
[1772069587783,0.00619504,2051.4,2051.0,1.3496096]
[1772069588182,47.64906024,2051.6,2051.2,1.3496096]
[1772069588392,47.64906024,2051.6,2051.0,1.3496096]
[1772069588787,6.372,2051.6,2051.0,1.3496096]
[1772069588991,6.372,2051.9,2051.1,1.3496096]
[1772069589194,6.37673047,2051.9,2051.1,1.3496096]
[1772069589493,0.00473047,2051.9,2051.3,1.3496096]
[1772069589889,0.00473047,2051.9,2051.5,1.35476248]
[1772069590093,6.372,2052.2,2051.5,1.35476248]
[1772069590391,0.4271887,2052.1,2051.7,1.35476248]
[1772069590891,0.4271887,2052.1,2051.0,1.35492701]
[1772069591191,0.43127123,2052.1,2051.1,1.35492701]
[1772069592192,0.43127123,2052.1,2051.3,1.3496096]
[1772069592993,0.42907894,2051.9,2051.0,0.00581953]
[1772069593194,0.42907894,2051.7,2051.0,7.00706428]
[1772069593786,0.42907894,2051.7,2050.5,6.372]
[1772069593993,0.42907894,2051.7,2050.7,1.3496096]
[1772069594791,0.42907894,2051.7,2050.8,7.00124475]
[1772069596190,6.61566,2051.8,2050.7,0.0059824]
[1772069596191,0.65413083,2051.5,2050.7,0.0059824]
[1772069596495,6.372,2051.4,2050.8,1.3496096]
[1772069596995,6.77254687,2051.4,2050.8,1.3496096]
[1772069597594,0.39154586,2051.3,2050.8,1.3496096]
[1772069597792,0.39154586,2051.3,2050.7,7.00722715]
[1772069597998,0.39154586,2051.3,2050.7,8.35683675]
[1772069598297,2.38703546,2051.3,2050.2,1.3496096]
[1772069598495,0.39154586,2051.2,2050.2,1.3496096]
[1772069598997,6.372,2051.4,2050.2,1.3496096]
[1772069599193,0.87148572,2051.3,2050.0,1.3496096]
[1772069599596,0.87148572,2051.3,2050.0,1.35417172]
[1772069600101,0.91305671,2051.2,2050.0,1.35417172]
[1772069605897,6.373,2051.1,2050.0,1.35417172]
[1772069606096,7.35927123,2051.1,2050.0,1.35417172]
[1772069606498,6.373,2051.1,2050.0,1.35417172]
[1772069606899,7.34737621,2051.1,2050.0,1.35417172]
[1772069607999,0.96578552,2051.0,2050.0,1.35417172]
[1772069609307,0.95457423,2051.4,2050.0,1.59803172]
[1772069609505,5.81995393,2051.3,2050.0,1.59803172]
[1772069609700,5.81995393,2051.3,2050.0,1.72006044]
[1772069609701,0.95039048,2050.6,2050.0,1.72006044]
[1772069609906,0.95553138,2050.6,2050.0,1.72006044]
[1772069611806,0.0051409,2050.6,2050.0,1.72006044]
[1772069613112,0.92744471,2050.6,2050.0,1.72006044]
[1772069614311,0.0051409,2050.6,2050.0,1.72006044]
[1772069615404,6.373,2050.9,2050.0,1.72006044]
[1772069616109,0.78065462,2050.8,2050.0,1.72006044]
[1772069616311,0.78548671,2050.8,2050.0,1.72006044]
[1772069618016,0.00483209,2050.8,2050.0,1.72006044]
[1772069618815,7.13214374,2051.4,2050.2,1.60852052]
[1772069619411,0.75814374,2051.7,2050.2,1.85236052]
[1772069619711,0.74777196,2051.7,2050.2,1.85236052]
[1772069620612,0.74267839,2051.5,2050.2,1.60852052]
[1772069620813,0.73326518,2051.3,2050.2,1.60852052]
[1772069621014,0.73326518,2051.1,2050.2,1.60852052]
[1772069621216,0.73326518,2050.9,2050.2,1.60852052]
[1772069623620,0.73326518,2050.9,2050.0,1.61308264]
[1772069623821,0.7311546,2050.7,2050.0,1.61308264]
[1772069625523,7.09518739,2050.9,2050.0,1.61308264]
[1772069625822,0.71036404,2050.8,2050.0,1.61308264]
[1772069628122,0.69035263,2050.6,2050.0,1.61308264]
[1772069628618,0.68964356,2050.8,2049.7,1.23565731]
[1772069628825,0.68062833,2050.6,2049.7,2.84417783]
[1772069629024,0.68062833,2050.4,2049.8,1.60852052]
[1772069629325,0.68062833,2050.3,2049.7,1.23565731]
[1772069629724,0.7153963,2050.1,2049.7,0.0040294]
[1772069630025,0.7153963,2050.1,2049.6,1.60232548]
[1772069630227,0.7153963,2050.1,2048.8,1.60852052]
[1772069630926,0.71888224,2050.1,2048.8,1.61470373]
[1772069631127,0.00348594,2050.1,2049.0,1.60852052]
[1772069632430,6.374,2050.4,2049.2,1.60852052]
[1772069632630,0.77581016,2050.6,2049.4,1.60852052]
[1772069632931,4.80727744,2050.8,2049.4,1.60852052]
[1772069633228,5.82635882,2050.7,2049.4,1.60852052]
[1772069633430,5.82635882,2050.6,2049.4,1.60852052]
[1772069634229,0.75977331,2050.7,2049.4,1.60852052]
[1772069634831,0.00505572,2050.7,2049.4,1.60852052]
[1772069635731,0.00505572,2050.7,2049.6,1.60852052]
[1772069636327,0.00505572,2050.7,2049.3,6.374]
[1772069636328,0.00505572,2050.7,2049.8,1.489297]
[1772069636624,0.78879357,2051.1,2050.0,1.489297]
[1772069636830,0.77937373,2050.9,2050.0,1.489297]
[1772069637427,0.78453632,2050.9,2050.0,1.489297]
[1772069639632,0.00516259,2050.9,2050.0,1.489297]
[1772069640430,0.74932935,2050.9,2050.0,1.489297]
[1772069641530,0.00516259,2050.9,2050.0,1.489297]
[1772069641930,0.72891207,2051.5,2050.1,1.733147]
[1772069642127,5.82770699,2051.4,2050.2,1.489297]
[1772069642332,0.72891207,2051.5,2050.2,1.489297]
[1772069642727,0.71999501,2051.7,2050.6,1.489297]
[1772069642929,0.72508241,2051.7,2050.7,1.489297]
[1772069643523,0.0050874,2051.7,2050.7,1.489297]
[1772069645034,0.70374406,2051.7,2050.7,1.489297]
[1772069645828,0.70706185,2052.1,2050.9,1.489297]
[1772069646629,3.00007844,2052.3,2050.9,1.489297]
[1772069646833,3.00007844,2052.3,2051.0,1.733047]
[1772069647035,3.0034923,2052.3,2051.0,1.733047]
[1772069647234,0.00341386,2052.3,2051.0,1.733047]
[1772069647936,0.00341386,2052.3,2051.3,1.489297]
[1772069648135,0.6919635,2052.7,2051.5,1.489297]
[1772069648537,0.6919635,2052.9,2051.6,1.489297]
[1772069648839,0.68319108,2052.8,2051.6,1.489297]
[1772069649138,0.68841344,2052.8,2051.6,1.489297]
[1772069652241,0.00522236,2052.8,2051.7,0.24366]
[1772069652437,0.00522236,2052.8,2051.8,1.489297]
[1772069652740,0.68206872,2053.6,2052.1,1.489297]
[1772069652942,0.68206872,2053.6,2052.0,1.99622135]
[1772069652943,0.68206872,2053.1,2052.3,1.489297]
[1772069653938,0.68724913,2053.1,2052.3,1.49395528]
[1772069654343,0.68724913,2053.1,2052.3,0.00465828]
[1772069655236,0.00518041,2053.1,2052.3,1.49395528]
[1772069655536,0.00518041,2053.1,2052.3,7.86895528]
[1772069655841,0.69653386,2053.1,2052.4,1.489297]
[1772069656436,0.00518041,2053.1,2052.4,1.489297]
[1772069656638,0.69135345,2053.5,2052.4,1.489297]
[1772069656840,0.68256224,2053.7,2052.6,1.489297]
[1772069657239,23.09479021,2054.0,2052.9,1.489297]
[1772069657743,23.77628291,2054.0,2052.9,1.489297]